Department family,Entity,Date,Expense Type,Expense area,Supplier,Transaction number,AP Amount (�)
Department of Health,NHS Barnsley CCG,30/11/2019,C&M-APMS Contract Value,PRC DELEGATED CO-COMMISSIONING,BARNSLEY HEALTHCARE FEDERATION,29748056,"28,629.49"
Department of Health,NHS Barnsley CCG,30/11/2019,C&M-APMS OOH Opt Outs,PRC DELEGATED CO-COMMISSIONING,BARNSLEY HEALTHCARE FEDERATION,29748056,9.61
Department of Health,NHS Barnsley CCG,30/11/2019,C&M-APMS PCN DES Participation,PRC DELEGATED CO-COMMISSIONING,BARNSLEY HEALTHCARE FEDERATION,29748056,525.63
Department of Health,NHS Barnsley CCG,30/11/2019,C&M-APMS Prem Actual Rent,PRC DELEGATED CO-COMMISSIONING,BARNSLEY HEALTHCARE FEDERATION,29748056,"1,310.42"
Department of Health,NHS Barnsley CCG,30/11/2019,C&M-APMS Prem Rates,PRC DELEGATED CO-COMMISSIONING,BARNSLEY HEALTHCARE FEDERATION,29748056,500.00
Department of Health,NHS Barnsley CCG,30/11/2019,C&M-APMS Prem Water Rates,PRC DELEGATED CO-COMMISSIONING,BARNSLEY HEALTHCARE FEDERATION,29748056,65.15
Department of Health,NHS Barnsley CCG,30/11/2019,C&M-APMS QOF Aspiration,PRC DELEGATED CO-COMMISSIONING,BARNSLEY HEALTHCARE FEDERATION,29748056,"2,347.18"
Department of Health,NHS Barnsley CCG,30/11/2019,C&M-APMS Contract Value,PRC DELEGATED CO-COMMISSIONING,BARNSLEY HEALTHCARE FEDERATION,29748058,"31,719.61"
Department of Health,NHS Barnsley CCG,30/11/2019,C&M-APMS OOH Opt Outs,PRC DELEGATED CO-COMMISSIONING,BARNSLEY HEALTHCARE FEDERATION,29748058,32.27
Department of Health,NHS Barnsley CCG,30/11/2019,C&M-APMS PCN DES Participation,PRC DELEGATED CO-COMMISSIONING,BARNSLEY HEALTHCARE FEDERATION,29748058,615.93
Department of Health,NHS Barnsley CCG,30/11/2019,C&M-APMS Prem Actual Rent,PRC DELEGATED CO-COMMISSIONING,BARNSLEY HEALTHCARE FEDERATION,29748058,"2,150.00"
Department of Health,NHS Barnsley CCG,30/11/2019,C&M-APMS Prem Healthcentre Rent,PRC DELEGATED CO-COMMISSIONING,BARNSLEY HEALTHCARE FEDERATION,29748058,"7,567.71"
Department of Health,NHS Barnsley CCG,30/11/2019,C&M-APMS Prem Rates,PRC DELEGATED CO-COMMISSIONING,BARNSLEY HEALTHCARE FEDERATION,29748058,503.00
Department of Health,NHS Barnsley CCG,30/11/2019,C&M-PMS QOF Aspiration,PRC DELEGATED CO-COMMISSIONING,BARNSLEY HEALTHCARE FEDERATION,29748058,"2,244.77"
Department of Health,NHS Barnsley CCG,30/11/2019,C&M-APMS Contract Value,PRC DELEGATED CO-COMMISSIONING,BARNSLEY HEALTHCARE FEDERATION,29748060,"28,520.93"
Department of Health,NHS Barnsley CCG,30/11/2019,C&M-APMS OOH Opt Outs,PRC DELEGATED CO-COMMISSIONING,BARNSLEY HEALTHCARE FEDERATION,29748060,1.30
Department of Health,NHS Barnsley CCG,30/11/2019,C&M-APMS PCN DES Participation,PRC DELEGATED CO-COMMISSIONING,BARNSLEY HEALTHCARE FEDERATION,29748060,542.52
Department of Health,NHS Barnsley CCG,30/11/2019,C&M-APMS Prem Actual Rent,PRC DELEGATED CO-COMMISSIONING,BARNSLEY HEALTHCARE FEDERATION,29748060,"6,200.00"
Department of Health,NHS Barnsley CCG,30/11/2019,C&M-APMS Prem Rates,PRC DELEGATED CO-COMMISSIONING,BARNSLEY HEALTHCARE FEDERATION,29748060,"1,235.00"
Department of Health,NHS Barnsley CCG,30/11/2019,C&M-PMS QOF Aspiration,PRC DELEGATED CO-COMMISSIONING,BARNSLEY HEALTHCARE FEDERATION,29748060,"2,495.50"
Department of Health,NHS Barnsley CCG,30/11/2019,Clinical&Medical-Commercial Sector,OUT OF HOURS,BARNSLEY HEALTHCARE FEDERATION,30012104,"120,520.57"
Department of Health,NHS Barnsley CCG,30/11/2019,C&M-PMS Practice Transformational Support,COMMISSIONING SCHEMES,BARNSLEY HEALTHCARE FEDERATION,30012110,"54,166.67"
Department of Health,NHS Barnsley CCG,30/11/2019,C&M-GP PRACTICE REVENUE - PCTF,GP FORWARD VIEW,BARNSLEY HEALTHCARE FEDERATION,30012119,"140,527.50"
Department of Health,NHS Barnsley CCG,30/11/2019,C&M-PMS Contract Value,PRC DELEGATED CO-COMMISSIONING,BARNSLEY HEALTHCARE FEDERATION CIC (GOLDTHORPE),29750267,"41,946.33"
Department of Health,NHS Barnsley CCG,30/11/2019,C&M-PMS DES Minor Surgery,PRC DELEGATED CO-COMMISSIONING,BARNSLEY HEALTHCARE FEDERATION CIC (GOLDTHORPE),29750267,383.58
Department of Health,NHS Barnsley CCG,30/11/2019,C&M-PMS Out of Hours Opt Outs,PRC DELEGATED CO-COMMISSIONING,BARNSLEY HEALTHCARE FEDERATION CIC (GOLDTHORPE),29750267,13.00
Department of Health,NHS Barnsley CCG,30/11/2019,C&M-PMS PCN DES Participation,PRC DELEGATED CO-COMMISSIONING,BARNSLEY HEALTHCARE FEDERATION CIC (GOLDTHORPE),29750267,804.38
Department of Health,NHS Barnsley CCG,30/11/2019,C&M-PMS Prem Healthcentre Rent,PRC DELEGATED CO-COMMISSIONING,BARNSLEY HEALTHCARE FEDERATION CIC (GOLDTHORPE),29750267,"12,099.61"
Department of Health,NHS Barnsley CCG,30/11/2019,C&M-PMS QOF Aspiration,PRC DELEGATED CO-COMMISSIONING,BARNSLEY HEALTHCARE FEDERATION CIC (GOLDTHORPE),29750267,"3,008.69"
Department of Health,NHS Barnsley CCG,30/11/2019,Telecoms-Data lines,PRIMARY CARE IT,BARNSLEY HOSPITAL NHS FOUNDATION TRUST,29627084,"30,442.87"
Department of Health,NHS Barnsley CCG,30/11/2019,Hcare Srv Rec Fdtn Trust-Contract Baseline,ACUTE COMMISSIONING,BARNSLEY HOSPITAL NHS FOUNDATION TRUST,29627186,"119,000.00"
Department of Health,NHS Barnsley CCG,30/11/2019,Hcare Srv Rec Fdtn Trust-Contract Baseline,ACUTE COMMISSIONING,BARNSLEY HOSPITAL NHS FOUNDATION TRUST,29664865,"595,384.00"
Department of Health,NHS Barnsley CCG,30/11/2019,Hcare Srv Rec Fdtn Trust-Contract Baseline,ACUTE COMMISSIONING,BARNSLEY HOSPITAL NHS FOUNDATION TRUST,29664866,"13,114,477.00"
Department of Health,NHS Barnsley CCG,30/11/2019,Hcare Srv Rec Fdtn Trust-Contract Baseline,INTERMEDIATE CARE,BARNSLEY HOSPITAL NHS FOUNDATION TRUST,29664867,"227,319.30"
Department of Health,NHS Barnsley CCG,30/11/2019,Hcare Srv Rec Fdtn Trust-Contract Baseline,LONG TERM CONDITIONS,BARNSLEY HOSPITAL NHS FOUNDATION TRUST,29664867,"159,064.70"
Department of Health,NHS Barnsley CCG,31/10/2019,Hcare Srv Rec Fdtn Trust-Non Contract,ACUTE CHILDRENS SERVICES,BARNSLEY HOSPITAL NHS FOUNDATION TRUST,29396242,"25,781.47"
Department of Health,NHS Barnsley CCG,30/11/2019,Cont Care-Funded Nursing Care Allow,FUNDED NURSING CARE,BARNSLEY METROPOLITAN BOROUGH COUNCIL,29717137,"138,147.94"
Department of Health,NHS Barnsley CCG,30/11/2019,Cont Care-Interim Funding(Pre Panel),CHC ADULT FULLY FUNDED,BARNSLEY METROPOLITAN BOROUGH COUNCIL,29717137,"3,831.53"
Department of Health,NHS Barnsley CCG,30/11/2019,Cont Care-Interim Funding(Pre Panel),FUNDED NURSING CARE,BARNSLEY METROPOLITAN BOROUGH COUNCIL,29717137,"3,453.11"
Department of Health,NHS Barnsley CCG,30/11/2019,Cont Care-Physical Disab (<65),CHC ADULT JOINT FUNDED,BARNSLEY METROPOLITAN BOROUGH COUNCIL,29717137,449.38
Department of Health,NHS Barnsley CCG,30/11/2019,Clinical&Medical-Othe Public Sector,CHILD AND ADOLESCENT MENTAL HEALTH,BARNSLEY METROPOLITAN BOROUGH COUNCIL,29972643,"51,945.00"
Department of Health,NHS Barnsley CCG,30/11/2019,Clinical&Medical-Othe Public Sector,COMMISSIONING - NON ACUTE,BARNSLEY METROPOLITAN BOROUGH COUNCIL,29972643,"-155,156.00"
Department of Health,NHS Barnsley CCG,30/11/2019,Clinical&Medical-Othe Public Sector,COMMUNITY SERVICES,BARNSLEY METROPOLITAN BOROUGH COUNCIL,29972643,"32,984.00"
Department of Health,NHS Barnsley CCG,30/11/2019,Local AuthorityRevenue-Non-Contract,COMMUNITY SERVICES,BARNSLEY METROPOLITAN BOROUGH COUNCIL,29972643,"-4,875.00"
Department of Health,NHS Barnsley CCG,30/11/2019,Soc Care-Other Soc Care,COMMUNITY SERVICES,BARNSLEY METROPOLITAN BOROUGH COUNCIL,29972643,"352,586.00"
Department of Health,NHS Barnsley CCG,30/11/2019,Soc Care-Re-ablement services,COMMUNITY SERVICES,BARNSLEY METROPOLITAN BOROUGH COUNCIL,29972643,"195,691.00"
Department of Health,NHS Barnsley CCG,30/11/2019,Social Care-Res Long Stay Exp,LONG TERM CONDITIONS,BARNSLEY METROPOLITAN BOROUGH COUNCIL,29972643,"433,881.00"
Department of Health,NHS Barnsley CCG,30/11/2019,Social Care-Res Short Stay Exp,COMMUNITY SERVICES,BARNSLEY METROPOLITAN BOROUGH COUNCIL,29972643,"68,708.00"
Department of Health,NHS Barnsley CCG,30/11/2019,C&M-GMS DES Extended Hours Access,PRC DELEGATED CO-COMMISSIONING,BHF - PCN,29774193,"-31,961.73"
Department of Health,NHS Barnsley CCG,30/11/2019,C&M-GMS PCN DES Clinical Director,PRC DELEGATED CO-COMMISSIONING,BHF - PCN,29774193,"-14,948.43"
Department of Health,NHS Barnsley CCG,30/11/2019,C&M-GMS DES Extended Hours Access,PRC DELEGATED CO-COMMISSIONING,BHF - PCN,29774261,"31,961.73"
Department of Health,NHS Barnsley CCG,30/11/2019,C&M-GMS PCN DES Clinical Director,PRC DELEGATED CO-COMMISSIONING,BHF - PCN,29774261,"14,948.43"
Department of Health,NHS Barnsley CCG,30/11/2019,Clinical&Medical-Commercial Sector,ACUTE COMMISSIONING,BMI HEALTHCARE LTD,29668939,"29,370.48"
Department of Health,NHS Barnsley CCG,30/11/2019,C&M-GMS Global Sum,PRC DELEGATED CO-COMMISSIONING,NHS BARNSLEY CCG GP PRACTICE,29945391,"95,570.86"
Department of Health,NHS Barnsley CCG,30/11/2019,C&M-GMS PCN DES Participation,PRC DELEGATED CO-COMMISSIONING,NHS BARNSLEY CCG GP PRACTICE,29945391,"1,946.09"
Department of Health,NHS Barnsley CCG,30/11/2019,C&M-GMS Prem Actual Rent,PRC DELEGATED CO-COMMISSIONING,NHS BARNSLEY CCG GP PRACTICE,29945391,"12,500.00"
Department of Health,NHS Barnsley CCG,30/11/2019,C&M-GMS Prem Healthcentre Rent,PRC DELEGATED CO-COMMISSIONING,NHS BARNSLEY CCG GP PRACTICE,29945391,"3,276.92"
Department of Health,NHS Barnsley CCG,30/11/2019,C&M-GMS Prem Rates,PRC DELEGATED CO-COMMISSIONING,NHS BARNSLEY CCG GP PRACTICE,29945391,"4,680.00"
Department of Health,NHS Barnsley CCG,30/11/2019,C&M-GMS QOF Aspiration,PRC DELEGATED CO-COMMISSIONING,NHS BARNSLEY CCG GP PRACTICE,29945391,"9,600.36"
Department of Health,NHS Barnsley CCG,30/11/2019,Clinical&Medical-Commercial Sector,ACUTE COMMISSIONING,CLAREMONT HOSPITAL,29774410,"33,040.00"
Department of Health,NHS Barnsley CCG,30/11/2019,Clinical&Medical-Commercial Sector,ACUTE COMMISSIONING,CLAREMONT HOSPITAL,29877496,"51,939.00"
Department of Health,NHS Barnsley CCG,30/11/2019,Voids and Subsidies,RECHARGES NHS PROPERTY SERVICES LTD,COMMUNITY HEALTH PARTNERSHIPS LTD,29627291,"53,033.71"
Department of Health,NHS Barnsley CCG,30/11/2019,Voids and Subsidies,RECHARGES NHS PROPERTY SERVICES LTD,COMMUNITY HEALTH PARTNERSHIPS LTD,29687170,"53,033.71"
Department of Health,NHS Barnsley CCG,30/11/2019,Soc Care-Bed-Based Int Care Servs,INTERMEDIATE CARE,CROWN CARE (IV) LTD,29627220,"79,514.29"
Department of Health,NHS Barnsley CCG,30/11/2019,Soc Care-Bed-Based Int Care Servs,INTERMEDIATE CARE,CROWN CARE (IV) LTD,29687450,"26,792.86"
Department of Health,NHS Barnsley CCG,30/11/2019,C&M-GMS GP Statutory Levy,PRC DELEGATED CO-COMMISSIONING,NHS BARNSLEY CCG GP PRACTICE,29944990,-346.33
Department of Health,NHS Barnsley CCG,30/11/2019,C&M-GMS Voluntary Levy,PRC DELEGATED CO-COMMISSIONING,NHS BARNSLEY CCG GP PRACTICE,29944990,-60.61
Department of Health,NHS Barnsley CCG,30/11/2019,ME - GMS GP Prior Year ERs,PRC DELEGATED CO-COMMISSIONING,NHS BARNSLEY CCG GP PRACTICE,29944990,"-7,937.76"
Department of Health,NHS Barnsley CCG,30/11/2019,ME-GMS GP Pension EEs,PRC DELEGATED CO-COMMISSIONING,NHS BARNSLEY CCG GP PRACTICE,29944990,"-2,531.25"
Department of Health,NHS Barnsley CCG,30/11/2019,ME-GMS GP Pension EEs Adjustments,PRC DELEGATED CO-COMMISSIONING,NHS BARNSLEY CCG GP PRACTICE,29944990,"-6,885.00"
Department of Health,NHS Barnsley CCG,30/11/2019,ME-GMS GP Pension ERs Adjustments,PRC DELEGATED CO-COMMISSIONING,NHS BARNSLEY CCG GP PRACTICE,29944990,"-10,830.23"
Department of Health,NHS Barnsley CCG,30/11/2019,ME-GMS GP Prior Year EEs,PRC DELEGATED CO-COMMISSIONING,NHS BARNSLEY CCG GP PRACTICE,29944990,"-7,452.00"
Department of Health,NHS Barnsley CCG,30/11/2019,C&M-GMS DES Learn Dsblty Hlth Chk,PRC DELEGATED CO-COMMISSIONING,NHS BARNSLEY CCG GP PRACTICE,29944991,348.00
Department of Health,NHS Barnsley CCG,30/11/2019,C&M-GMS Global Sum,PRC DELEGATED CO-COMMISSIONING,NHS BARNSLEY CCG GP PRACTICE,29944991,"86,920.99"
Department of Health,NHS Barnsley CCG,30/11/2019,C&M-GMS PCN DES Participation,PRC DELEGATED CO-COMMISSIONING,NHS BARNSLEY CCG GP PRACTICE,29944991,"1,756.95"
Department of Health,NHS Barnsley CCG,30/11/2019,C&M-GMS Prem Healthcentre Rent,PRC DELEGATED CO-COMMISSIONING,NHS BARNSLEY CCG GP PRACTICE,29944991,"27,043.66"
Department of Health,NHS Barnsley CCG,30/11/2019,C&M-GMS QOF Aspiration,PRC DELEGATED CO-COMMISSIONING,NHS BARNSLEY CCG GP PRACTICE,29944991,"8,149.07"
Department of Health,NHS Barnsley CCG,30/11/2019,ME-GMS GP Pension EEs Adjustments,PRC DELEGATED CO-COMMISSIONING,NHS BARNSLEY CCG GP PRACTICE,29944991,"2,953.13"
Department of Health,NHS Barnsley CCG,30/11/2019,ME-GMS GP Pension ERs Adjustments,PRC DELEGATED CO-COMMISSIONING,NHS BARNSLEY CCG GP PRACTICE,29944991,"3,397.27"
Department of Health,NHS Barnsley CCG,31/10/2019,Hcare Srv Rec Fdtn Trust-CQUIN,ACUTE COMMISSIONING,DONCASTER AND BASSETLAW HOSPITALS NHS FOUNDATION TRUST,29479982,"2,483.00"
Department of Health,NHS Barnsley CCG,31/10/2019,Hcare Srv Rec Fdtn Trust-Contract Baseline,ACUTE COMMISSIONING,DONCASTER AND BASSETLAW HOSPITALS NHS FOUNDATION TRUST,29479982,"432,508.00"
Department of Health,NHS Barnsley CCG,30/11/2019,C&M-PMS Contract Value,PRC DELEGATED CO-COMMISSIONING,NHS BARNSLEY CCG GP PRACTICE,29748032,-612.28
Department of Health,NHS Barnsley CCG,30/11/2019,C&M-PMS Out of Hours Opt Outs,PRC DELEGATED CO-COMMISSIONING,NHS BARNSLEY CCG GP PRACTICE,29748032,"-4,487.63"
Department of Health,NHS Barnsley CCG,30/11/2019,ME-PMS GP Pension EEs Adjs - PMS,PRC DELEGATED CO-COMMISSIONING,NHS BARNSLEY CCG GP PRACTICE,29748032,"-14,723.34"
Department of Health,NHS Barnsley CCG,30/11/2019,ME-PMS GP Pension EEs-PMS,PRC DELEGATED CO-COMMISSIONING,NHS BARNSLEY CCG GP PRACTICE,29748032,"-7,627.09"
Department of Health,NHS Barnsley CCG,30/11/2019,ME-PMS GP Pension ERs Adjs - PMS,PRC DELEGATED CO-COMMISSIONING,NHS BARNSLEY CCG GP PRACTICE,29748032,"-20,958.86"
Department of Health,NHS Barnsley CCG,30/11/2019,C&M-PMS Contract Value,PRC DELEGATED CO-COMMISSIONING,NHS BARNSLEY CCG GP PRACTICE,29748033,"93,147.74"
Department of Health,NHS Barnsley CCG,30/11/2019,C&M-PMS DES Minor Surgery,PRC DELEGATED CO-COMMISSIONING,NHS BARNSLEY CCG GP PRACTICE,29748033,"2,429.34"
Department of Health,NHS Barnsley CCG,30/11/2019,C&M-PMS Out of Hours Opt Outs,PRC DELEGATED CO-COMMISSIONING,NHS BARNSLEY CCG GP PRACTICE,29748033,29.73
Department of Health,NHS Barnsley CCG,30/11/2019,C&M-PMS PCN DES Participation,PRC DELEGATED CO-COMMISSIONING,NHS BARNSLEY CCG GP PRACTICE,29748033,"1,811.14"
Department of Health,NHS Barnsley CCG,30/11/2019,C&M-PMS PCO Other,PRC DELEGATED CO-COMMISSIONING,NHS BARNSLEY CCG GP PRACTICE,29748033,646.50
Department of Health,NHS Barnsley CCG,30/11/2019,C&M-PMS Prem Healthcentre Rent,PRC DELEGATED CO-COMMISSIONING,NHS BARNSLEY CCG GP PRACTICE,29748033,"18,178.19"
Department of Health,NHS Barnsley CCG,30/11/2019,C&M-PMS Prem Notional Rent,PRC DELEGATED CO-COMMISSIONING,NHS BARNSLEY CCG GP PRACTICE,29748033,"1,987.50"
Department of Health,NHS Barnsley CCG,30/11/2019,C&M-PMS Prem Rates,PRC DELEGATED CO-COMMISSIONING,NHS BARNSLEY CCG GP PRACTICE,29748033,360.61
Department of Health,NHS Barnsley CCG,30/11/2019,C&M-PMS QOF Aspiration,PRC DELEGATED CO-COMMISSIONING,NHS BARNSLEY CCG GP PRACTICE,29748033,"10,450.25"
Department of Health,NHS Barnsley CCG,30/11/2019,ME-PMS GP Pension EEs Adjs - PMS,PRC DELEGATED CO-COMMISSIONING,NHS BARNSLEY CCG GP PRACTICE,29748033,"2,093.76"
Department of Health,NHS Barnsley CCG,30/11/2019,ME-PMS GP Pension ERs Adjs - PMS,PRC DELEGATED CO-COMMISSIONING,NHS BARNSLEY CCG GP PRACTICE,29748033,"2,408.64"
Department of Health,NHS Barnsley CCG,30/11/2019,C&M-PMS Contract Value,PRC DELEGATED CO-COMMISSIONING,NHS BARNSLEY CCG GP PRACTICE,29748037,"57,338.22"
Department of Health,NHS Barnsley CCG,30/11/2019,C&M-PMS DES Minor Surgery,PRC DELEGATED CO-COMMISSIONING,NHS BARNSLEY CCG GP PRACTICE,29748037,"1,193.36"
Department of Health,NHS Barnsley CCG,30/11/2019,C&M-PMS PCN DES Participation,PRC DELEGATED CO-COMMISSIONING,NHS BARNSLEY CCG GP PRACTICE,29748037,"1,084.83"
Department of Health,NHS Barnsley CCG,30/11/2019,C&M-PMS Prem Healthcentre Rent,PRC DELEGATED CO-COMMISSIONING,NHS BARNSLEY CCG GP PRACTICE,29748037,"21,474.28"
Department of Health,NHS Barnsley CCG,30/11/2019,C&M-PMS QOF Aspiration,PRC DELEGATED CO-COMMISSIONING,NHS BARNSLEY CCG GP PRACTICE,29748037,"5,320.13"
Department of Health,NHS Barnsley CCG,30/11/2019,C&M-GMS Global Sum,PRC DELEGATED CO-COMMISSIONING,NHS BARNSLEY CCG GP PRACTICE,29944993,"76,868.70"
Department of Health,NHS Barnsley CCG,30/11/2019,C&M-GMS PCN DES Participation,PRC DELEGATED CO-COMMISSIONING,NHS BARNSLEY CCG GP PRACTICE,29944993,"1,574.13"
Department of Health,NHS Barnsley CCG,30/11/2019,C&M-GMS PCO Other,PRC DELEGATED CO-COMMISSIONING,NHS BARNSLEY CCG GP PRACTICE,29944993,614.90
Department of Health,NHS Barnsley CCG,30/11/2019,C&M-GMS Prem Notional Rent,PRC DELEGATED CO-COMMISSIONING,NHS BARNSLEY CCG GP PRACTICE,29944993,"4,658.33"
Department of Health,NHS Barnsley CCG,30/11/2019,C&M-GMS Prem Rates,PRC DELEGATED CO-COMMISSIONING,NHS BARNSLEY CCG GP PRACTICE,29944993,"1,318.00"
Department of Health,NHS Barnsley CCG,30/11/2019,C&M-GMS QOF Aspiration,PRC DELEGATED CO-COMMISSIONING,NHS BARNSLEY CCG GP PRACTICE,29944993,"8,124.94"
Department of Health,NHS Barnsley CCG,30/11/2019,C&M-PMS Contract Value,PRC DELEGATED CO-COMMISSIONING,NHS BARNSLEY CCG GP PRACTICE,29748040,"-1,017.68"
Department of Health,NHS Barnsley CCG,30/11/2019,C&M-PMS Out of Hours Opt Outs,PRC DELEGATED CO-COMMISSIONING,NHS BARNSLEY CCG GP PRACTICE,29748040,"-6,398.57"
Department of Health,NHS Barnsley CCG,30/11/2019,ME - PMS GP Prior Year ERs,PRC DELEGATED CO-COMMISSIONING,NHS BARNSLEY CCG GP PRACTICE,29748040,-641.73
Department of Health,NHS Barnsley CCG,30/11/2019,ME-PMS GP Pension EEs-PMS,PRC DELEGATED CO-COMMISSIONING,NHS BARNSLEY CCG GP PRACTICE,29748040,"-11,006.25"
Department of Health,NHS Barnsley CCG,30/11/2019,ME-PMS GP Pension ERs Adjs - PMS,PRC DELEGATED CO-COMMISSIONING,NHS BARNSLEY CCG GP PRACTICE,29748040,"-11,539.95"
Department of Health,NHS Barnsley CCG,30/11/2019,ME-PMS GP Prior Year EEs,PRC DELEGATED CO-COMMISSIONING,NHS BARNSLEY CCG GP PRACTICE,29748040,-602.49
Department of Health,NHS Barnsley CCG,30/11/2019,C&M-PMS Contract Value,PRC DELEGATED CO-COMMISSIONING,NHS BARNSLEY CCG GP PRACTICE,29767015,"135,717.64"
Department of Health,NHS Barnsley CCG,30/11/2019,C&M-PMS DES Minor Surgery,PRC DELEGATED CO-COMMISSIONING,NHS BARNSLEY CCG GP PRACTICE,29767015,"10,868.10"
Department of Health,NHS Barnsley CCG,30/11/2019,C&M-PMS Out of Hours Opt Outs,PRC DELEGATED CO-COMMISSIONING,NHS BARNSLEY CCG GP PRACTICE,29767015,47.97
Department of Health,NHS Barnsley CCG,30/11/2019,C&M-PMS PCN DES Participation,PRC DELEGATED CO-COMMISSIONING,NHS BARNSLEY CCG GP PRACTICE,29767015,"2,600.20"
Department of Health,NHS Barnsley CCG,30/11/2019,C&M-PMS PCO Locum Adop/Pat/Mat,PRC DELEGATED CO-COMMISSIONING,NHS BARNSLEY CCG GP PRACTICE,29767015,"24,408.41"
Department of Health,NHS Barnsley CCG,30/11/2019,C&M-PMS Prem Notional Rent,PRC DELEGATED CO-COMMISSIONING,NHS BARNSLEY CCG GP PRACTICE,29767015,"6,333.33"
Department of Health,NHS Barnsley CCG,30/11/2019,C&M-PMS Prem Rates,PRC DELEGATED CO-COMMISSIONING,NHS BARNSLEY CCG GP PRACTICE,29767015,"2,165.00"
Department of Health,NHS Barnsley CCG,30/11/2019,C&M-PMS QOF Aspiration,PRC DELEGATED CO-COMMISSIONING,NHS BARNSLEY CCG GP PRACTICE,29767015,"13,813.79"
Department of Health,NHS Barnsley CCG,30/11/2019,ME - PMS GP Prior Year ERs,PRC DELEGATED CO-COMMISSIONING,NHS BARNSLEY CCG GP PRACTICE,29767015,"2,551.25"
Department of Health,NHS Barnsley CCG,30/11/2019,ME-PMS GP Prior Year AVCs,PRC DELEGATED CO-COMMISSIONING,NHS BARNSLEY CCG GP PRACTICE,29767015,839.19
Department of Health,NHS Barnsley CCG,30/11/2019,ME-PMS GP Prior Year EEs,PRC DELEGATED CO-COMMISSIONING,NHS BARNSLEY CCG GP PRACTICE,29767015,"2,572.54"
Department of Health,NHS Barnsley CCG,30/11/2019,C&M-PMS Cost of Drugs -Dispensing,LOCAL ENHANCED SERVICES,NHS BARNSLEY CCG GP PRACTICE,29969069,"-74,889.36"
Department of Health,NHS Barnsley CCG,30/11/2019,C&M-PMS Prsc Chrgs Cll&Rmttd by GPs,PRC DELEGATED CO-COMMISSIONING,NHS BARNSLEY CCG GP PRACTICE,29969069,"-4,752.00"
Department of Health,NHS Barnsley CCG,30/11/2019,C&M-PMS Cost of Drugs -Dispensing,LOCAL ENHANCED SERVICES,NHS BARNSLEY CCG GP PRACTICE,29969070,"172,861.79"
Department of Health,NHS Barnsley CCG,30/11/2019,C&M-PMS Prof fees Dispensing,PRC DELEGATED CO-COMMISSIONING,NHS BARNSLEY CCG GP PRACTICE,29969070,"26,484.96"
Department of Health,NHS Barnsley CCG,30/11/2019,C&M-PMS Prsc Chrgs Cll&Rmttd by GPs,LOCAL ENHANCED SERVICES,NHS BARNSLEY CCG GP PRACTICE,29969070,"4,752.00"
Department of Health,NHS Barnsley CCG,30/11/2019,C&M-GMS Global Sum,PRC DELEGATED CO-COMMISSIONING,NHS BARNSLEY CCG GP PRACTICE,29945399,"24,291.13"
Department of Health,NHS Barnsley CCG,30/11/2019,C&M-GMS MPIG Correction Factor,PRC DELEGATED CO-COMMISSIONING,NHS BARNSLEY CCG GP PRACTICE,29945399,202.40
Department of Health,NHS Barnsley CCG,30/11/2019,C&M-GMS PCN DES Participation,PRC DELEGATED CO-COMMISSIONING,NHS BARNSLEY CCG GP PRACTICE,29945399,481.53
Department of Health,NHS Barnsley CCG,30/11/2019,C&M-GMS PCO Other,PRC DELEGATED CO-COMMISSIONING,NHS BARNSLEY CCG GP PRACTICE,29945399,227.50
Department of Health,NHS Barnsley CCG,30/11/2019,C&M-GMS Prem Healthcentre Rent,PRC DELEGATED CO-COMMISSIONING,NHS BARNSLEY CCG GP PRACTICE,29945399,"1,512.79"
Department of Health,NHS Barnsley CCG,30/11/2019,C&M-GMS QOF Aspiration,PRC DELEGATED CO-COMMISSIONING,NHS BARNSLEY CCG GP PRACTICE,29945399,"2,460.63"
Department of Health,NHS Barnsley CCG,30/11/2019,C&M-APMS LES GP Comm Incentive Sch,COMMISSIONING SCHEMES,NHS BARNSLEY CCG GP PRACTICE,29627305,"8,895.79"
Department of Health,NHS Barnsley CCG,30/11/2019,C&M-PMS LES Referral Management,COMMISSIONING SCHEMES,NHS BARNSLEY CCG GP PRACTICE,29627305,"17,019.52"
Department of Health,NHS Barnsley CCG,30/11/2019,C&M-GMS DES Minor Surgery,PRC DELEGATED CO-COMMISSIONING,NHS BARNSLEY CCG GP PRACTICE,29944995,426.20
Department of Health,NHS Barnsley CCG,30/11/2019,C&M-GMS Global Sum,PRC DELEGATED CO-COMMISSIONING,NHS BARNSLEY CCG GP PRACTICE,29944995,"42,800.37"
Department of Health,NHS Barnsley CCG,30/11/2019,C&M-GMS PCN DES Participation,PRC DELEGATED CO-COMMISSIONING,NHS BARNSLEY CCG GP PRACTICE,29944995,847.50
Department of Health,NHS Barnsley CCG,30/11/2019,C&M-GMS Prem Notional Rent,PRC DELEGATED CO-COMMISSIONING,NHS BARNSLEY CCG GP PRACTICE,29944995,"1,681.25"
Department of Health,NHS Barnsley CCG,30/11/2019,C&M-GMS Prem Rates,PRC DELEGATED CO-COMMISSIONING,NHS BARNSLEY CCG GP PRACTICE,29944995,"1,502.00"
Department of Health,NHS Barnsley CCG,30/11/2019,C&M-GMS QOF Aspiration,PRC DELEGATED CO-COMMISSIONING,NHS BARNSLEY CCG GP PRACTICE,29944995,"4,009.16"
Department of Health,NHS Barnsley CCG,30/11/2019,C&M-PMS Contract Value,PRC DELEGATED CO-COMMISSIONING,NHS BARNSLEY CCG GP PRACTICE,29748039,"39,002.92"
Department of Health,NHS Barnsley CCG,30/11/2019,C&M-PMS DES Minor Surgery,PRC DELEGATED CO-COMMISSIONING,NHS BARNSLEY CCG GP PRACTICE,29748039,"1,321.22"
Department of Health,NHS Barnsley CCG,30/11/2019,C&M-PMS Out of Hours Opt Outs,PRC DELEGATED CO-COMMISSIONING,NHS BARNSLEY CCG GP PRACTICE,29748039,33.62
Department of Health,NHS Barnsley CCG,30/11/2019,C&M-PMS PCN DES Participation,PRC DELEGATED CO-COMMISSIONING,NHS BARNSLEY CCG GP PRACTICE,29748039,742.47
Department of Health,NHS Barnsley CCG,30/11/2019,C&M-PMS Prem Healthcentre Rent,PRC DELEGATED CO-COMMISSIONING,NHS BARNSLEY CCG GP PRACTICE,29748039,"3,596.62"
Department of Health,NHS Barnsley CCG,30/11/2019,C&M-PMS Prem Notional Rent,PRC DELEGATED CO-COMMISSIONING,NHS BARNSLEY CCG GP PRACTICE,29748039,"8,808.34"
Department of Health,NHS Barnsley CCG,30/11/2019,C&M-PMS Prem Rates,PRC DELEGATED CO-COMMISSIONING,NHS BARNSLEY CCG GP PRACTICE,29748039,"1,550.59"
Department of Health,NHS Barnsley CCG,30/11/2019,C&M-PMS QOF Aspiration,PRC DELEGATED CO-COMMISSIONING,NHS BARNSLEY CCG GP PRACTICE,29748039,"2,732.54"
Department of Health,NHS Barnsley CCG,30/11/2019,C&M-GMS GP Statutory Levy,PRC DELEGATED CO-COMMISSIONING,NHS BARNSLEY CCG GP PRACTICE,29944998,-454.97
Department of Health,NHS Barnsley CCG,30/11/2019,C&M-GMS Voluntary Levy,PRC DELEGATED CO-COMMISSIONING,NHS BARNSLEY CCG GP PRACTICE,29944998,-79.62
Department of Health,NHS Barnsley CCG,30/11/2019,ME - GMS GP Prior Year ERs,PRC DELEGATED CO-COMMISSIONING,NHS BARNSLEY CCG GP PRACTICE,29944998,"-4,486.56"
Department of Health,NHS Barnsley CCG,30/11/2019,ME - GMS TPS Added Years Adj EEs,PRC DELEGATED CO-COMMISSIONING,NHS BARNSLEY CCG GP PRACTICE,29944998,-572.25
Department of Health,NHS Barnsley CCG,30/11/2019,ME-GMS GP Pension EEs,PRC DELEGATED CO-COMMISSIONING,NHS BARNSLEY CCG GP PRACTICE,29944998,"-11,388.34"
Department of Health,NHS Barnsley CCG,30/11/2019,ME-GMS GP Pension EEs Adjustments,PRC DELEGATED CO-COMMISSIONING,NHS BARNSLEY CCG GP PRACTICE,29944998,"-1,125.00"
Department of Health,NHS Barnsley CCG,30/11/2019,ME-GMS GP Pension ERs Adjustments,PRC DELEGATED CO-COMMISSIONING,NHS BARNSLEY CCG GP PRACTICE,29944998,"-12,846.14"
Department of Health,NHS Barnsley CCG,30/11/2019,ME-GMS GP Prior Year EEs,PRC DELEGATED CO-COMMISSIONING,NHS BARNSLEY CCG GP PRACTICE,29944998,"-3,900.00"
Department of Health,NHS Barnsley CCG,30/11/2019,C&M-GMS Global Sum,PRC DELEGATED CO-COMMISSIONING,NHS BARNSLEY CCG GP PRACTICE,29944999,"109,871.99"
Department of Health,NHS Barnsley CCG,30/11/2019,C&M-GMS PCN DES Participation,PRC DELEGATED CO-COMMISSIONING,NHS BARNSLEY CCG GP PRACTICE,29944999,"2,254.50"
Department of Health,NHS Barnsley CCG,30/11/2019,C&M-GMS Prem Notional Rent,PRC DELEGATED CO-COMMISSIONING,NHS BARNSLEY CCG GP PRACTICE,29944999,"7,741.67"
Department of Health,NHS Barnsley CCG,30/11/2019,C&M-GMS Prem Rates,PRC DELEGATED CO-COMMISSIONING,NHS BARNSLEY CCG GP PRACTICE,29944999,"2,379.00"
Department of Health,NHS Barnsley CCG,30/11/2019,C&M-GMS QOF Aspiration,PRC DELEGATED CO-COMMISSIONING,NHS BARNSLEY CCG GP PRACTICE,29944999,"11,179.35"
Department of Health,NHS Barnsley CCG,30/11/2019,ME-GMS GP Pension EEs Adjustments,PRC DELEGATED CO-COMMISSIONING,NHS BARNSLEY CCG GP PRACTICE,29944999,790.40
Department of Health,NHS Barnsley CCG,30/11/2019,ME-GMS GP Pension ERs Adjustments,PRC DELEGATED CO-COMMISSIONING,NHS BARNSLEY CCG GP PRACTICE,29944999,841.93
Department of Health,NHS Barnsley CCG,30/11/2019,C&M-GMS Cost of Drugs -Dispensing,LOCAL ENHANCED SERVICES,NHS BARNSLEY CCG GP PRACTICE,29969073,"25,082.53"
Department of Health,NHS Barnsley CCG,30/11/2019,C&M-GMS Prof Fees Dispensing,PRC DELEGATED CO-COMMISSIONING,NHS BARNSLEY CCG GP PRACTICE,29969073,"5,095.26"
Department of Health,NHS Barnsley CCG,30/11/2019,C&M-GMS PrscrptnChrgsColl&RmttdbyGP,LOCAL ENHANCED SERVICES,NHS BARNSLEY CCG GP PRACTICE,29969073,108.00
Department of Health,NHS Barnsley CCG,30/11/2019,C&M-GMS Global Sum,PRC DELEGATED CO-COMMISSIONING,NHS BARNSLEY CCG GP PRACTICE,29944997,"98,239.14"
Department of Health,NHS Barnsley CCG,30/11/2019,C&M-GMS PCN DES Participation,PRC DELEGATED CO-COMMISSIONING,NHS BARNSLEY CCG GP PRACTICE,29944997,"2,013.63"
Department of Health,NHS Barnsley CCG,30/11/2019,C&M-GMS Prem Notional Rent,PRC DELEGATED CO-COMMISSIONING,NHS BARNSLEY CCG GP PRACTICE,29944997,"13,593.75"
Department of Health,NHS Barnsley CCG,30/11/2019,C&M-GMS Prem Rates,PRC DELEGATED CO-COMMISSIONING,NHS BARNSLEY CCG GP PRACTICE,29944997,"3,093.54"
Department of Health,NHS Barnsley CCG,30/11/2019,C&M-GMS QOF Aspiration,PRC DELEGATED CO-COMMISSIONING,NHS BARNSLEY CCG GP PRACTICE,29944997,"9,651.42"
Department of Health,NHS Barnsley CCG,30/11/2019,C&M-GMS Global Sum,PRC DELEGATED CO-COMMISSIONING,NHS BARNSLEY CCG GP PRACTICE,29945002,"82,856.19"
Department of Health,NHS Barnsley CCG,30/11/2019,C&M-GMS PCN DES Participation,PRC DELEGATED CO-COMMISSIONING,NHS BARNSLEY CCG GP PRACTICE,29945002,"1,684.26"
Department of Health,NHS Barnsley CCG,30/11/2019,C&M-GMS PCO Other,PRC DELEGATED CO-COMMISSIONING,NHS BARNSLEY CCG GP PRACTICE,29945002,644.20
Department of Health,NHS Barnsley CCG,30/11/2019,C&M-GMS Prem Actual Rent,PRC DELEGATED CO-COMMISSIONING,NHS BARNSLEY CCG GP PRACTICE,29945002,"5,187.46"
Department of Health,NHS Barnsley CCG,30/11/2019,C&M-GMS Prem Rates,PRC DELEGATED CO-COMMISSIONING,NHS BARNSLEY CCG GP PRACTICE,29945002,"2,448.18"
Department of Health,NHS Barnsley CCG,30/11/2019,C&M-GMS QOF Aspiration,PRC DELEGATED CO-COMMISSIONING,NHS BARNSLEY CCG GP PRACTICE,29945002,"10,284.96"
Department of Health,NHS Barnsley CCG,30/11/2019,C&M-PMS Contract Value,PRC DELEGATED CO-COMMISSIONING,NHS BARNSLEY CCG GP PRACTICE,29748041,"-2,575.16"
Department of Health,NHS Barnsley CCG,30/11/2019,C&M-PMS Out of Hours Opt Outs,PRC DELEGATED CO-COMMISSIONING,NHS BARNSLEY CCG GP PRACTICE,29748041,"-7,071.78"
Department of Health,NHS Barnsley CCG,30/11/2019,ME - PMS TPS Added Years Adj EEs,PRC DELEGATED CO-COMMISSIONING,NHS BARNSLEY CCG GP PRACTICE,29748041,"-1,344.08"
Department of Health,NHS Barnsley CCG,30/11/2019,ME-PMS GP Pension EEs-PMS,PRC DELEGATED CO-COMMISSIONING,NHS BARNSLEY CCG GP PRACTICE,29748041,"-14,552.57"
Department of Health,NHS Barnsley CCG,30/11/2019,ME-PMS GP Pension ERs Adjs - PMS,PRC DELEGATED CO-COMMISSIONING,NHS BARNSLEY CCG GP PRACTICE,29748041,"-13,991.71"
Department of Health,NHS Barnsley CCG,30/11/2019,C&M-PMS Contract Value,PRC DELEGATED CO-COMMISSIONING,NHS BARNSLEY CCG GP PRACTICE,29748042,"146,783.40"
Department of Health,NHS Barnsley CCG,30/11/2019,C&M-PMS DES Minor Surgery,PRC DELEGATED CO-COMMISSIONING,NHS BARNSLEY CCG GP PRACTICE,29748042,"12,999.10"
Department of Health,NHS Barnsley CCG,30/11/2019,C&M-PMS Out of Hours Opt Outs,PRC DELEGATED CO-COMMISSIONING,NHS BARNSLEY CCG GP PRACTICE,29748042,124.50
Department of Health,NHS Barnsley CCG,30/11/2019,C&M-PMS PCN DES Participation,PRC DELEGATED CO-COMMISSIONING,NHS BARNSLEY CCG GP PRACTICE,29748042,"2,875.49"
Department of Health,NHS Barnsley CCG,30/11/2019,C&M-PMS PCO Locum Adop/Pat/Mat,PRC DELEGATED CO-COMMISSIONING,NHS BARNSLEY CCG GP PRACTICE,29748042,"46,621.76"
Department of Health,NHS Barnsley CCG,30/11/2019,C&M-PMS PCO Other,PRC DELEGATED CO-COMMISSIONING,NHS BARNSLEY CCG GP PRACTICE,29748042,"1,042.90"
Department of Health,NHS Barnsley CCG,30/11/2019,C&M-PMS Prem Notional Rent,PRC DELEGATED CO-COMMISSIONING,NHS BARNSLEY CCG GP PRACTICE,29748042,"11,741.66"
Department of Health,NHS Barnsley CCG,30/11/2019,C&M-PMS Prem Rates,PRC DELEGATED CO-COMMISSIONING,NHS BARNSLEY CCG GP PRACTICE,29748042,"2,327.85"
Department of Health,NHS Barnsley CCG,30/11/2019,C&M-PMS QOF Aspiration,PRC DELEGATED CO-COMMISSIONING,NHS BARNSLEY CCG GP PRACTICE,29748042,"15,137.25"
Department of Health,NHS Barnsley CCG,30/11/2019,C&M-APMS LES GP Comm Incentive Sch,COMMISSIONING SCHEMES,NHS BARNSLEY CCG GP PRACTICE,29774490,"8,112.26"
Department of Health,NHS Barnsley CCG,30/11/2019,C&M-GMS PCO Other,COMMISSIONING SCHEMES,NHS BARNSLEY CCG GP PRACTICE,29774490,"19,622.90"
Department of Health,NHS Barnsley CCG,30/11/2019,C&M-PMS LES Referral Management,COMMISSIONING SCHEMES,NHS BARNSLEY CCG GP PRACTICE,29774490,"6,577.51"
Department of Health,NHS Barnsley CCG,30/11/2019,C&M-PMS Out of Hours Opt Outs,PRC DELEGATED CO-COMMISSIONING,NHS BARNSLEY CCG GP PRACTICE,29748043,"-5,006.38"
Department of Health,NHS Barnsley CCG,30/11/2019,C&M-PMS Prem Rates,PRC DELEGATED CO-COMMISSIONING,NHS BARNSLEY CCG GP PRACTICE,29748043,-44.78
Department of Health,NHS Barnsley CCG,30/11/2019,ME-PMS GP Pension EEs Adjs - PMS,PRC DELEGATED CO-COMMISSIONING,NHS BARNSLEY CCG GP PRACTICE,29748043,"-1,620.00"
Department of Health,NHS Barnsley CCG,30/11/2019,ME-PMS GP Pension EEs-PMS,PRC DELEGATED CO-COMMISSIONING,NHS BARNSLEY CCG GP PRACTICE,29748043,"-9,625.41"
Department of Health,NHS Barnsley CCG,30/11/2019,ME-PMS GP Pension ERs Adjs - PMS,PRC DELEGATED CO-COMMISSIONING,NHS BARNSLEY CCG GP PRACTICE,29748043,"-11,875.48"
Department of Health,NHS Barnsley CCG,30/11/2019,C&M-PMS Contract Value,PRC DELEGATED CO-COMMISSIONING,NHS BARNSLEY CCG GP PRACTICE,29748044,"103,920.43"
Department of Health,NHS Barnsley CCG,30/11/2019,C&M-PMS DES Minor Surgery,PRC DELEGATED CO-COMMISSIONING,NHS BARNSLEY CCG GP PRACTICE,29748044,"10,527.14"
Department of Health,NHS Barnsley CCG,30/11/2019,C&M-PMS PCN DES Participation,PRC DELEGATED CO-COMMISSIONING,NHS BARNSLEY CCG GP PRACTICE,29748044,"2,013.74"
Department of Health,NHS Barnsley CCG,30/11/2019,C&M-PMS PCO Other,PRC DELEGATED CO-COMMISSIONING,NHS BARNSLEY CCG GP PRACTICE,29748044,726.40
Department of Health,NHS Barnsley CCG,30/11/2019,C&M-PMS Prem Actual Rent,PRC DELEGATED CO-COMMISSIONING,NHS BARNSLEY CCG GP PRACTICE,29748044,"13,333.33"
Department of Health,NHS Barnsley CCG,30/11/2019,C&M-PMS Prem Rates,PRC DELEGATED CO-COMMISSIONING,NHS BARNSLEY CCG GP PRACTICE,29748044,"3,276.00"
Department of Health,NHS Barnsley CCG,30/11/2019,C&M-PMS QOF Aspiration,PRC DELEGATED CO-COMMISSIONING,NHS BARNSLEY CCG GP PRACTICE,29748044,"10,812.71"
Department of Health,NHS Barnsley CCG,30/11/2019,C&M-PMS Contract Value,PRC DELEGATED CO-COMMISSIONING,NHS BARNSLEY CCG GP PRACTICE,29748045,-249.26
Department of Health,NHS Barnsley CCG,30/11/2019,C&M-PMS Out of Hours Opt Outs,PRC DELEGATED CO-COMMISSIONING,NHS BARNSLEY CCG GP PRACTICE,29748045,"-4,422.14"
Department of Health,NHS Barnsley CCG,30/11/2019,ME - PMS GP Prior Year ERs,PRC DELEGATED CO-COMMISSIONING,NHS BARNSLEY CCG GP PRACTICE,29748045,"-19,986.43"
Department of Health,NHS Barnsley CCG,30/11/2019,ME-PMS GP Pension EEs-PMS,PRC DELEGATED CO-COMMISSIONING,NHS BARNSLEY CCG GP PRACTICE,29748045,-73.93
Department of Health,NHS Barnsley CCG,30/11/2019,ME-PMS GP Pension ERs Adjs - PMS,PRC DELEGATED CO-COMMISSIONING,NHS BARNSLEY CCG GP PRACTICE,29748045,"-1,479.97"
Department of Health,NHS Barnsley CCG,30/11/2019,ME-PMS GP Prior Year EEs,PRC DELEGATED CO-COMMISSIONING,NHS BARNSLEY CCG GP PRACTICE,29748045,"-20,153.28"
Department of Health,NHS Barnsley CCG,30/11/2019,C&M-PMS Contract Value,PRC DELEGATED CO-COMMISSIONING,NHS BARNSLEY CCG GP PRACTICE,29748046,"91,791.59"
Department of Health,NHS Barnsley CCG,30/11/2019,C&M-PMS DES Minor Surgery,PRC DELEGATED CO-COMMISSIONING,NHS BARNSLEY CCG GP PRACTICE,29748046,"3,580.08"
Department of Health,NHS Barnsley CCG,30/11/2019,C&M-PMS Out of Hours Opt Outs,PRC DELEGATED CO-COMMISSIONING,NHS BARNSLEY CCG GP PRACTICE,29748046,12.00
Department of Health,NHS Barnsley CCG,30/11/2019,C&M-PMS PCN DES Participation,PRC DELEGATED CO-COMMISSIONING,NHS BARNSLEY CCG GP PRACTICE,29748046,"1,787.42"
Department of Health,NHS Barnsley CCG,30/11/2019,C&M-PMS PCO Other,PRC DELEGATED CO-COMMISSIONING,NHS BARNSLEY CCG GP PRACTICE,29748046,709.80
Department of Health,NHS Barnsley CCG,30/11/2019,C&M-PMS Prem Actual Rent,PRC DELEGATED CO-COMMISSIONING,NHS BARNSLEY CCG GP PRACTICE,29748046,"8,566.67"
Department of Health,NHS Barnsley CCG,30/11/2019,C&M-PMS Prem Rates,PRC DELEGATED CO-COMMISSIONING,NHS BARNSLEY CCG GP PRACTICE,29748046,"2,080.00"
Department of Health,NHS Barnsley CCG,30/11/2019,C&M-PMS QOF Aspiration,PRC DELEGATED CO-COMMISSIONING,NHS BARNSLEY CCG GP PRACTICE,29748046,"7,216.95"
Department of Health,NHS Barnsley CCG,30/11/2019,C&M-GMS Global Sum,PRC DELEGATED CO-COMMISSIONING,NHS BARNSLEY CCG GP PRACTICE,29945004,"57,863.03"
Department of Health,NHS Barnsley CCG,30/11/2019,C&M-GMS PCN DES Participation,PRC DELEGATED CO-COMMISSIONING,NHS BARNSLEY CCG GP PRACTICE,29945004,"1,187.90"
Department of Health,NHS Barnsley CCG,30/11/2019,C&M-GMS Prem Healthcentre Rent,PRC DELEGATED CO-COMMISSIONING,NHS BARNSLEY CCG GP PRACTICE,29945004,"24,538.12"
Department of Health,NHS Barnsley CCG,30/11/2019,C&M-GMS QOF Aspiration,PRC DELEGATED CO-COMMISSIONING,NHS BARNSLEY CCG GP PRACTICE,29945004,"6,065.73"
Department of Health,NHS Barnsley CCG,30/11/2019,C&M-PMS Contract Value,PRC DELEGATED CO-COMMISSIONING,NHS BARNSLEY CCG GP PRACTICE,29748048,"105,067.65"
Department of Health,NHS Barnsley CCG,30/11/2019,C&M-PMS DES Minor Surgery,PRC DELEGATED CO-COMMISSIONING,NHS BARNSLEY CCG GP PRACTICE,29748048,"5,497.98"
Department of Health,NHS Barnsley CCG,30/11/2019,C&M-PMS Out of Hours Opt Outs,PRC DELEGATED CO-COMMISSIONING,NHS BARNSLEY CCG GP PRACTICE,29748048,25.90
Department of Health,NHS Barnsley CCG,30/11/2019,C&M-PMS PCN DES Participation,PRC DELEGATED CO-COMMISSIONING,NHS BARNSLEY CCG GP PRACTICE,29748048,"2,041.60"
Department of Health,NHS Barnsley CCG,30/11/2019,C&M-PMS PCO Locum Adop/Pat/Mat,PRC DELEGATED CO-COMMISSIONING,NHS BARNSLEY CCG GP PRACTICE,29748048,"11,888.96"
Department of Health,NHS Barnsley CCG,30/11/2019,C&M-PMS Prem Rates,PRC DELEGATED CO-COMMISSIONING,NHS BARNSLEY CCG GP PRACTICE,29748048,"3,513.00"
Department of Health,NHS Barnsley CCG,30/11/2019,C&M-PMS QOF Aspiration,PRC DELEGATED CO-COMMISSIONING,NHS BARNSLEY CCG GP PRACTICE,29748048,"11,217.47"
Department of Health,NHS Barnsley CCG,30/11/2019,ME-PMS GP Pension EEs Adjs - PMS,PRC DELEGATED CO-COMMISSIONING,NHS BARNSLEY CCG GP PRACTICE,29748048,363.58
Department of Health,NHS Barnsley CCG,30/11/2019,ME-PMS GP Pension ERs Adjs - PMS,PRC DELEGATED CO-COMMISSIONING,NHS BARNSLEY CCG GP PRACTICE,29748048,562.19
Department of Health,NHS Barnsley CCG,30/11/2019,C&M-GMS Global Sum,PRC DELEGATED CO-COMMISSIONING,NHS BARNSLEY CCG GP PRACTICE,29945007,"50,312.21"
Department of Health,NHS Barnsley CCG,30/11/2019,C&M-GMS PCN DES Participation,PRC DELEGATED CO-COMMISSIONING,NHS BARNSLEY CCG GP PRACTICE,29945007,"1,018.56"
Department of Health,NHS Barnsley CCG,30/11/2019,C&M-GMS Prem Notional Rent,PRC DELEGATED CO-COMMISSIONING,NHS BARNSLEY CCG GP PRACTICE,29945007,"2,750.00"
Department of Health,NHS Barnsley CCG,30/11/2019,C&M-GMS Prem Rates,PRC DELEGATED CO-COMMISSIONING,NHS BARNSLEY CCG GP PRACTICE,29945007,565.00
Department of Health,NHS Barnsley CCG,30/11/2019,C&M-GMS QOF Aspiration,PRC DELEGATED CO-COMMISSIONING,NHS BARNSLEY CCG GP PRACTICE,29945007,"3,844.61"
Department of Health,NHS Barnsley CCG,30/11/2019,Clinical&Medical-Commercial Sector,LEARNING DIFFICULTIES,ELYSIUM HEALTHCARE LTD,29624739,"30,217.25"
Department of Health,NHS Barnsley CCG,30/11/2019,Clinical&Medical-Commercial Sector,LEARNING DIFFICULTIES,ELYSIUM HEALTHCARE LTD,29624753,"34,167.89"
Department of Health,NHS Barnsley CCG,30/11/2019,Clinical&Medical-Commercial Sector,LEARNING DIFFICULTIES,ELYSIUM HEALTHCARE LTD,30010270,"33,065.70"
Department of Health,NHS Barnsley CCG,30/11/2019,Clinical&Medical-Commercial Sector,LEARNING DIFFICULTIES,ELYSIUM HEALTHCARE LTD,30010283,"29,242.50"
Department of Health,NHS Barnsley CCG,30/11/2019,C&M-PMS Contract Value,PRC DELEGATED CO-COMMISSIONING,NHS BARNSLEY CCG GP PRACTICE,29748061,"42,963.62"
Department of Health,NHS Barnsley CCG,30/11/2019,C&M-PMS Out of Hours Opt Outs,PRC DELEGATED CO-COMMISSIONING,NHS BARNSLEY CCG GP PRACTICE,29748061,36.05
Department of Health,NHS Barnsley CCG,30/11/2019,C&M-PMS PCN DES Participation,PRC DELEGATED CO-COMMISSIONING,NHS BARNSLEY CCG GP PRACTICE,29748061,799.36
Department of Health,NHS Barnsley CCG,30/11/2019,C&M-PMS Prem Rates,PRC DELEGATED CO-COMMISSIONING,NHS BARNSLEY CCG GP PRACTICE,29748061,"3,500.00"
Department of Health,NHS Barnsley CCG,30/11/2019,C&M-PMS QOF Aspiration,PRC DELEGATED CO-COMMISSIONING,NHS BARNSLEY CCG GP PRACTICE,29748061,"4,070.72"
Department of Health,NHS Barnsley CCG,30/11/2019,Soc Care-Bed-Based Int Care Servs,INTERMEDIATE CARE,HIGHSTONE MEWS CARE HOME,29624828,"38,910.67"
Department of Health,NHS Barnsley CCG,30/11/2019,Soc Care-Bed-Based Int Care Servs,INTERMEDIATE CARE,HIGHSTONE MEWS CARE HOME,29627295,"31,114.80"
Department of Health,NHS Barnsley CCG,30/11/2019,Apprenticeship Levy Payable,BALANCE SHEET,HMRC,29789063,"1,162.00"
Department of Health,NHS Barnsley CCG,30/11/2019,Income tax <1Yr,BALANCE SHEET,HMRC,29789063,"70,265.60"
Department of Health,NHS Barnsley CCG,30/11/2019,Income tax <1Yr-Student Loans,BALANCE SHEET,HMRC,29789063,"2,060.00"
Department of Health,NHS Barnsley CCG,30/11/2019,National Insurance < 1 yr-NI- ERS,BALANCE SHEET,HMRC,29789063,"51,360.99"
Department of Health,NHS Barnsley CCG,30/11/2019,National Insurance < 1 yr-NI-EES,BALANCE SHEET,HMRC,29789063,"38,390.60"
Department of Health,NHS Barnsley CCG,30/11/2019,Statutory Mat Pay < 1 yr,BALANCE SHEET,HMRC,29789063,-547.16
Department of Health,NHS Barnsley CCG,30/11/2019,Cont Care-Learning Disab(<65),CHC ADULT JOINT FUNDED,HOLLY BANK TRUST,29898976,"34,429.58"
Department of Health,NHS Barnsley CCG,30/11/2019,C&M-GMS Global Sum,PRC DELEGATED CO-COMMISSIONING,NHS BARNSLEY CCG GP PRACTICE,29945401,"96,608.76"
Department of Health,NHS Barnsley CCG,30/11/2019,C&M-GMS PCN DES Participation,PRC DELEGATED CO-COMMISSIONING,NHS BARNSLEY CCG GP PRACTICE,29945401,"1,967.78"
Department of Health,NHS Barnsley CCG,30/11/2019,C&M-GMS Prem Healthcentre Rent,PRC DELEGATED CO-COMMISSIONING,NHS BARNSLEY CCG GP PRACTICE,29945401,"39,576.01"
Department of Health,NHS Barnsley CCG,30/11/2019,C&M-GMS QOF Aspiration,PRC DELEGATED CO-COMMISSIONING,NHS BARNSLEY CCG GP PRACTICE,29945401,"9,168.58"
Department of Health,NHS Barnsley CCG,30/11/2019,C&M-GMS Global Sum,PRC DELEGATED CO-COMMISSIONING,NHS BARNSLEY CCG GP PRACTICE,29945009,"91,415.92"
Department of Health,NHS Barnsley CCG,30/11/2019,C&M-GMS PCN DES Participation,PRC DELEGATED CO-COMMISSIONING,NHS BARNSLEY CCG GP PRACTICE,29945009,"1,845.99"
Department of Health,NHS Barnsley CCG,30/11/2019,C&M-GMS Prem Healthcentre Rent,PRC DELEGATED CO-COMMISSIONING,NHS BARNSLEY CCG GP PRACTICE,29945009,"21,846.34"
Department of Health,NHS Barnsley CCG,30/11/2019,C&M-GMS Prem Notional Rent,PRC DELEGATED CO-COMMISSIONING,NHS BARNSLEY CCG GP PRACTICE,29945009,"1,466.67"
Department of Health,NHS Barnsley CCG,30/11/2019,C&M-GMS QOF Aspiration,PRC DELEGATED CO-COMMISSIONING,NHS BARNSLEY CCG GP PRACTICE,29945009,"10,019.14"
Department of Health,NHS Barnsley CCG,30/11/2019,C&M-APMS LES GP Comm Incentive Sch,COMMISSIONING SCHEMES,NHS BARNSLEY CCG GP PRACTICE,29774377,"6,360.35"
Department of Health,NHS Barnsley CCG,30/11/2019,C&M-GMS PCO Other,COMMISSIONING SCHEMES,NHS BARNSLEY CCG GP PRACTICE,29774377,"15,385.17"
Department of Health,NHS Barnsley CCG,30/11/2019,C&M-PMS LES Referral Management,COMMISSIONING SCHEMES,NHS BARNSLEY CCG GP PRACTICE,29774377,"5,157.04"
Department of Health,NHS Barnsley CCG,30/11/2019,Clinical&Medical-Commercial Sector,ACUTE COMMISSIONING,INHEALTH PAIN MANAGEMENT SOLUTIONS LTD,29717177,"27,455.28"
Department of Health,NHS Barnsley CCG,30/11/2019,C&M-PMS Contract Value,PRC DELEGATED CO-COMMISSIONING,NHS BARNSLEY CCG GP PRACTICE,29748050,"51,103.69"
Department of Health,NHS Barnsley CCG,30/11/2019,C&M-PMS Out of Hours Opt Outs,PRC DELEGATED CO-COMMISSIONING,NHS BARNSLEY CCG GP PRACTICE,29748050,25.48
Department of Health,NHS Barnsley CCG,30/11/2019,C&M-PMS PCN DES Participation,PRC DELEGATED CO-COMMISSIONING,NHS BARNSLEY CCG GP PRACTICE,29748050,970.05
Department of Health,NHS Barnsley CCG,30/11/2019,C&M-PMS Prem Healthcentre Rent,PRC DELEGATED CO-COMMISSIONING,NHS BARNSLEY CCG GP PRACTICE,29748050,"5,961.99"
Department of Health,NHS Barnsley CCG,30/11/2019,C&M-PMS Prem Notional Rent,PRC DELEGATED CO-COMMISSIONING,NHS BARNSLEY CCG GP PRACTICE,29748050,"3,666.67"
Department of Health,NHS Barnsley CCG,30/11/2019,C&M-PMS Prem Rates,PRC DELEGATED CO-COMMISSIONING,NHS BARNSLEY CCG GP PRACTICE,29748050,839.00
Department of Health,NHS Barnsley CCG,30/11/2019,C&M-PMS QOF Aspiration,PRC DELEGATED CO-COMMISSIONING,NHS BARNSLEY CCG GP PRACTICE,29748050,"5,136.89"
Department of Health,NHS Barnsley CCG,30/11/2019,External Data Contracts,BUSINESS INFORMATICS,KIER BUSINESS SERVICES LTD,29794559,"13,467.00"
Department of Health,NHS Barnsley CCG,30/11/2019,External Data Contracts,COMMISSIONING SCHEMES,KIER BUSINESS SERVICES LTD,29794559,"14,391.00"
Department of Health,NHS Barnsley CCG,30/11/2019,Telecoms-Data lines,PRIMARY CARE IT,KIER BUSINESS SERVICES LTD,29794559,"47,150.00"
Department of Health,NHS Barnsley CCG,30/11/2019,C&M-PMS Contract Value,PRC DELEGATED CO-COMMISSIONING,NHS BARNSLEY CCG GP PRACTICE,29750265,"30,421.74"
Department of Health,NHS Barnsley CCG,30/11/2019,C&M-PMS DES Minor Surgery,PRC DELEGATED CO-COMMISSIONING,NHS BARNSLEY CCG GP PRACTICE,29750265,"3,452.22"
Department of Health,NHS Barnsley CCG,30/11/2019,C&M-PMS Out of Hours Opt Outs,PRC DELEGATED CO-COMMISSIONING,NHS BARNSLEY CCG GP PRACTICE,29750265,1.90
Department of Health,NHS Barnsley CCG,30/11/2019,C&M-PMS PCN DES Participation,PRC DELEGATED CO-COMMISSIONING,NHS BARNSLEY CCG GP PRACTICE,29750265,570.89
Department of Health,NHS Barnsley CCG,30/11/2019,C&M-PMS Prem Notional Rent,PRC DELEGATED CO-COMMISSIONING,NHS BARNSLEY CCG GP PRACTICE,29750265,"4,333.33"
Department of Health,NHS Barnsley CCG,30/11/2019,C&M-PMS Prem Rates,PRC DELEGATED CO-COMMISSIONING,NHS BARNSLEY CCG GP PRACTICE,29750265,"1,300.00"
Department of Health,NHS Barnsley CCG,30/11/2019,C&M-PMS QOF Aspiration,PRC DELEGATED CO-COMMISSIONING,NHS BARNSLEY CCG GP PRACTICE,29750265,"2,166.21"
Department of Health,NHS Barnsley CCG,30/11/2019,C&M-PMS Cost of Drugs -Dispensing,LOCAL ENHANCED SERVICES,NHS BARNSLEY CCG GP PRACTICE,29968565,"21,877.74"
Department of Health,NHS Barnsley CCG,30/11/2019,C&M-PMS Prof fees Dispensing,PRC DELEGATED CO-COMMISSIONING,NHS BARNSLEY CCG GP PRACTICE,29968565,"4,869.54"
Department of Health,NHS Barnsley CCG,30/11/2019,C&M-PMS Prsc Chrgs Cll&Rmttd by GPs,LOCAL ENHANCED SERVICES,NHS BARNSLEY CCG GP PRACTICE,29968565,"1,386.00"
Department of Health,NHS Barnsley CCG,30/11/2019,Cont Care- Prior Year Payments,CHC ADULT JOINT FUNDED,KIRKLEES METROPOLITAN COUNCIL,29932048,"71,030.05"
Department of Health,NHS Barnsley CCG,30/11/2019,Cont Care- Prior Year Payments,CHC ADULT JOINT FUNDED,KIRKLEES METROPOLITAN COUNCIL,30010100,"75,506.99"
Department of Health,NHS Barnsley CCG,30/11/2019,Cont Care- Prior Year Payments,CHC ADULT JOINT FUNDED,KIRKLEES METROPOLITAN COUNCIL,30012153,"-75,506.99"
Department of Health,NHS Barnsley CCG,30/11/2019,C&M-APMS Contract Value,PRC DELEGATED CO-COMMISSIONING,NHS BARNSLEY CCG GP PRACTICE,29748054,"19,809.86"
Department of Health,NHS Barnsley CCG,30/11/2019,C&M-APMS DES Minor Surgery,PRC DELEGATED CO-COMMISSIONING,NHS BARNSLEY CCG GP PRACTICE,29748054,170.48
Department of Health,NHS Barnsley CCG,30/11/2019,C&M-APMS OOH Opt Outs,PRC DELEGATED CO-COMMISSIONING,NHS BARNSLEY CCG GP PRACTICE,29748054,3.08
Department of Health,NHS Barnsley CCG,30/11/2019,C&M-APMS PCN DES Participation,PRC DELEGATED CO-COMMISSIONING,NHS BARNSLEY CCG GP PRACTICE,29748054,378.75
Department of Health,NHS Barnsley CCG,30/11/2019,C&M-APMS Prem Healthcentre Rent,PRC DELEGATED CO-COMMISSIONING,NHS BARNSLEY CCG GP PRACTICE,29748054,"4,986.28"
Department of Health,NHS Barnsley CCG,30/11/2019,C&M-PMS QOF Aspiration,PRC DELEGATED CO-COMMISSIONING,NHS BARNSLEY CCG GP PRACTICE,29748054,"1,724.79"
Department of Health,NHS Barnsley CCG,30/11/2019,Hcare Srv Rec NHS Trust-CQUIN,ACUTE COMMISSIONING,LEEDS TEACHING HOSPITALS NHS TRUST,29668885,"1,010.00"
Department of Health,NHS Barnsley CCG,30/11/2019,Hcare Srv Rec NHS Trust-Contract Baseline,ACUTE COMMISSIONING,LEEDS TEACHING HOSPITALS NHS TRUST,29668885,"97,982.00"
Department of Health,NHS Barnsley CCG,30/11/2019,Hcare Srv Rec NHS Trust-CQUIN,ACUTE COMMISSIONING,MID YORKSHIRE HOSPITALS NHS TRUST,29669091,"1,978.00"
Department of Health,NHS Barnsley CCG,30/11/2019,Hcare Srv Rec NHS Trust-Contract Baseline,ACUTE COMMISSIONING,MID YORKSHIRE HOSPITALS NHS TRUST,29669091,"346,689.00"
Department of Health,NHS Barnsley CCG,30/11/2019,Hcare Srv Rec NHS Trust-CQUIN,ACUTE COMMISSIONING,MID YORKSHIRE HOSPITALS NHS TRUST,29687395,"8,795.11"
Department of Health,NHS Barnsley CCG,30/11/2019,Hcare Srv Rec NHS Trust-Contract Baseline,ACUTE COMMISSIONING,MID YORKSHIRE HOSPITALS NHS TRUST,29687395,"22,558.89"
Department of Health,NHS Barnsley CCG,31/10/2019,C&M-GMS Prem Other,PRC DELEGATED CO-COMMISSIONING,NHS ENGLAND,29526898,"2,383.49"
Department of Health,NHS Barnsley CCG,31/10/2019,C&M-PMS Prem Clinical Waste,PRC DELEGATED CO-COMMISSIONING,NHS ENGLAND,29526898,"15,944.91"
Department of Health,NHS Barnsley CCG,31/10/2019,Recharge : Provided,PRC DELEGATED CO-COMMISSIONING,NHS ENGLAND,29526898,"12,840.00"
Department of Health,NHS Barnsley CCG,30/11/2019,Charges from CCG,CORPORATE COSTS & SERVICES,NHS SHEFFIELD CCG,29627175,"45,581.49"
Department of Health,NHS Barnsley CCG,30/11/2019,Clinical&Medical-Commercial Sector,ACUTE COMMISSIONING,ONEHEALTH GROUP,29894360,"39,893.00"
Department of Health,NHS Barnsley CCG,30/11/2019,Clinical&Medical-Commercial Sector,ACUTE COMMISSIONING,ONEHEALTH GROUP,29894370,"138,084.94"
Department of Health,NHS Barnsley CCG,30/11/2019,C&M-APMS LES GP Comm Incentive Sch,COMMISSIONING SCHEMES,NHS BARNSLEY CCG GP PRACTICE,29627313,"7,335.62"
Department of Health,NHS Barnsley CCG,30/11/2019,C&M-GMS PCO Other,COMMISSIONING SCHEMES,NHS BARNSLEY CCG GP PRACTICE,29627313,"17,744.28"
Department of Health,NHS Barnsley CCG,30/11/2019,C&M-PMS LES Referral Management,COMMISSIONING SCHEMES,NHS BARNSLEY CCG GP PRACTICE,29627313,"5,947.80"
Department of Health,NHS Barnsley CCG,30/11/2019,Other Transport Costs,PATIENT TRANSPORT,PREMIER CARE DIRECT LTD,29907995,"35,025.67"
Department of Health,NHS Barnsley CCG,31/10/2019,Hcare Srv Rec Fdtn Trust-CQUIN,MENTAL HEALTH CONTRACTS,ROTHERHAM DONCASTER AND SOUTH HUMBER NHS FOUNDATION TRUST,29396187,235.50
Department of Health,NHS Barnsley CCG,31/10/2019,Hcare Srv Rec Fdtn Trust-Contract Baseline,MENTAL HEALTH CONTRACTS,ROTHERHAM DONCASTER AND SOUTH HUMBER NHS FOUNDATION TRUST,29396187,"37,679.00"
Department of Health,NHS Barnsley CCG,30/11/2019,Hcare Srv Rec Fdtn Trust-CQUIN,ACUTE COMMISSIONING,ROTHERHAM NHS FOUNDATION TRUST,29668931,"2,339.00"
Department of Health,NHS Barnsley CCG,30/11/2019,Hcare Srv Rec Fdtn Trust-Contract Baseline,ACUTE COMMISSIONING,ROTHERHAM NHS FOUNDATION TRUST,29668931,"410,225.00"
Department of Health,NHS Barnsley CCG,30/11/2019,Hcare Srv Rec Fdtn Trust-CQUIN,COMMUNITY SERVICES,ROTHERHAM NHS FOUNDATION TRUST,29668935,530.00
Department of Health,NHS Barnsley CCG,30/11/2019,Hcare Srv Rec Fdtn Trust-Contract Baseline,COMMUNITY SERVICES,ROTHERHAM NHS FOUNDATION TRUST,29668935,"42,420.00"
Department of Health,NHS Barnsley CCG,30/11/2019,C&M-GMS Global Sum,PRC DELEGATED CO-COMMISSIONING,NHS BARNSLEY CCG GP PRACTICE,29945403,"62,053.65"
Department of Health,NHS Barnsley CCG,30/11/2019,C&M-GMS PCN DES Participation,PRC DELEGATED CO-COMMISSIONING,NHS BARNSLEY CCG GP PRACTICE,29945403,"1,280.72"
Department of Health,NHS Barnsley CCG,30/11/2019,C&M-GMS Prem Notional Rent,PRC DELEGATED CO-COMMISSIONING,NHS BARNSLEY CCG GP PRACTICE,29945403,"8,873.23"
Department of Health,NHS Barnsley CCG,30/11/2019,C&M-GMS Prem Rates,PRC DELEGATED CO-COMMISSIONING,NHS BARNSLEY CCG GP PRACTICE,29945403,890.00
Department of Health,NHS Barnsley CCG,30/11/2019,C&M-GMS QOF Aspiration,PRC DELEGATED CO-COMMISSIONING,NHS BARNSLEY CCG GP PRACTICE,29945403,"6,864.29"
Department of Health,NHS Barnsley CCG,31/10/2019,Hcare Srv Rec Fdtn Trust-CQUIN,ACUTE COMMISSIONING,SHEFFIELD CHILDRENS NHS FOUNDATION TRUST,29230744,"3,196.60"
Department of Health,NHS Barnsley CCG,31/10/2019,Hcare Srv Rec Fdtn Trust-Contract Baseline,ACUTE COMMISSIONING,SHEFFIELD CHILDRENS NHS FOUNDATION TRUST,29230744,"-43,803.37"
Department of Health,NHS Barnsley CCG,31/10/2019,Hcare Srv Rec Fdtn Trust-CQUIN,ACUTE COMMISSIONING,SHEFFIELD CHILDRENS NHS FOUNDATION TRUST,29438715,966.00
Department of Health,NHS Barnsley CCG,31/10/2019,Hcare Srv Rec Fdtn Trust-Contract Baseline,ACUTE COMMISSIONING,SHEFFIELD CHILDRENS NHS FOUNDATION TRUST,29438715,"157,714.00"
Department of Health,NHS Barnsley CCG,30/11/2019,Hcare Srv Rec Fdtn Trust-Contract Baseline,ACUTE COMMISSIONING,SHEFFIELD TEACHING HOSPITALS NHS FOUNDATION TRUST,29627103,"183,041.00"
Department of Health,NHS Barnsley CCG,30/11/2019,Hcare Srv Rec Fdtn Trust-Contract Baseline,ACUTE COMMISSIONING,SHEFFIELD TEACHING HOSPITALS NHS FOUNDATION TRUST,29627107,"1,923,125.00"
Department of Health,NHS Barnsley CCG,30/11/2019,Hcare Srv Rec Fdtn Trust-CQUIN,ACUTE COMMISSIONING,SHEFFIELD TEACHING HOSPITALS NHS FOUNDATION TRUST,29717182,"37,256.00"
Department of Health,NHS Barnsley CCG,30/11/2019,Corporation Tax Payable,BALANCE SHEET,SIMPSON MILLAR SOLICITORS,30012169,"-8,808.37"
Department of Health,NHS Barnsley CCG,30/11/2019,NHS Recbles <1Yr- CHC Risk Pool Con,BALANCE SHEET,SIMPSON MILLAR SOLICITORS,30012169,"201,840.54"
Department of Health,NHS Barnsley CCG,30/11/2019,Hcare Srv Rec Fdtn Trust-CQUIN,COMMUNITY SERVICES,SOUTH WEST YORKSHIRE PARTNERSHIP NHS FOUNDATION TRUST,29627203,"7,101.50"
Department of Health,NHS Barnsley CCG,30/11/2019,Hcare Srv Rec Fdtn Trust-CQUIN,LEARNING DIFFICULTIES,SOUTH WEST YORKSHIRE PARTNERSHIP NHS FOUNDATION TRUST,29627203,"1,089.50"
Department of Health,NHS Barnsley CCG,30/11/2019,Hcare Srv Rec Fdtn Trust-CQUIN,MENTAL HEALTH SERVICES - ADULTS,SOUTH WEST YORKSHIRE PARTNERSHIP NHS FOUNDATION TRUST,29627203,"12,122.50"
Department of Health,NHS Barnsley CCG,30/11/2019,Hcare Srv Rec Fdtn Trust-CQUIN,MENTAL HEALTH SERVICES - OLDER PEOPLE,SOUTH WEST YORKSHIRE PARTNERSHIP NHS FOUNDATION TRUST,29627203,"1,408.50"
Department of Health,NHS Barnsley CCG,30/11/2019,Hcare Srv Rec Fdtn Trust-Contract Baseline,COMMUNITY SERVICES,SOUTH WEST YORKSHIRE PARTNERSHIP NHS FOUNDATION TRUST,29627203,"1,136,201.00"
Department of Health,NHS Barnsley CCG,30/11/2019,Hcare Srv Rec Fdtn Trust-Contract Baseline,LEARNING DIFFICULTIES,SOUTH WEST YORKSHIRE PARTNERSHIP NHS FOUNDATION TRUST,29627203,"174,345.00"
Department of Health,NHS Barnsley CCG,30/11/2019,Hcare Srv Rec Fdtn Trust-Contract Baseline,MENTAL HEALTH SERVICES - ADULTS,SOUTH WEST YORKSHIRE PARTNERSHIP NHS FOUNDATION TRUST,29627203,"1,955,613.00"
Department of Health,NHS Barnsley CCG,30/11/2019,Hcare Srv Rec Fdtn Trust-Contract Baseline,MENTAL HEALTH SERVICES - OLDER PEOPLE,SOUTH WEST YORKSHIRE PARTNERSHIP NHS FOUNDATION TRUST,29627203,"239,751.00"
Department of Health,NHS Barnsley CCG,30/11/2019,Hcare Srv Rec Fdtn Trust-Non Contract,COMMUNITY SERVICES,SOUTH WEST YORKSHIRE PARTNERSHIP NHS FOUNDATION TRUST,29627203,"67,448.00"
Department of Health,NHS Barnsley CCG,30/11/2019,Hcare Srv Rec Fdtn Trust-CQUIN,COMMUNITY SERVICES,SOUTH WEST YORKSHIRE PARTNERSHIP NHS FOUNDATION TRUST,29627236,"3,814.03"
Department of Health,NHS Barnsley CCG,30/11/2019,Hcare Srv Rec Fdtn Trust-CQUIN,IMPROVING ACCESS TO PSYCHOLOGICAL THERAPIES,SOUTH WEST YORKSHIRE PARTNERSHIP NHS FOUNDATION TRUST,29627236,"1,265.65"
Department of Health,NHS Barnsley CCG,30/11/2019,Hcare Srv Rec Fdtn Trust-CQUIN,INTERMEDIATE CARE,SOUTH WEST YORKSHIRE PARTNERSHIP NHS FOUNDATION TRUST,29627236,"1,967.27"
Department of Health,NHS Barnsley CCG,30/11/2019,Hcare Srv Rec Fdtn Trust-CQUIN,LONG TERM CONDITIONS,SOUTH WEST YORKSHIRE PARTNERSHIP NHS FOUNDATION TRUST,29627236,947.06
Department of Health,NHS Barnsley CCG,30/11/2019,Hcare Srv Rec Fdtn Trust-Contract Baseline,COMMUNITY SERVICES,SOUTH WEST YORKSHIRE PARTNERSHIP NHS FOUNDATION TRUST,29627236,"610,225.62"
Department of Health,NHS Barnsley CCG,30/11/2019,Hcare Srv Rec Fdtn Trust-Contract Baseline,IMPROVING ACCESS TO PSYCHOLOGICAL THERAPIES,SOUTH WEST YORKSHIRE PARTNERSHIP NHS FOUNDATION TRUST,29627236,"202,498.82"
Department of Health,NHS Barnsley CCG,30/11/2019,Hcare Srv Rec Fdtn Trust-Contract Baseline,INTERMEDIATE CARE,SOUTH WEST YORKSHIRE PARTNERSHIP NHS FOUNDATION TRUST,29627236,"314,754.90"
Department of Health,NHS Barnsley CCG,30/11/2019,Hcare Srv Rec Fdtn Trust-Contract Baseline,LONG TERM CONDITIONS,SOUTH WEST YORKSHIRE PARTNERSHIP NHS FOUNDATION TRUST,29627236,"151,525.65"
Department of Health,NHS Barnsley CCG,30/11/2019,Hcare Srv Rec Fdtn Trust-Non Contract,NCAS/OATS,SOUTH WEST YORKSHIRE PARTNERSHIP NHS FOUNDATION TRUST,29669069,"25,296.00"
Department of Health,NHS Barnsley CCG,31/10/2019,Hcare Srv Rec Fdtn Trust-Contract Baseline,INTERMEDIATE CARE,SOUTH WEST YORKSHIRE PARTNERSHIP NHS FOUNDATION TRUST,29208045,"1,286,999.00"
Department of Health,NHS Barnsley CCG,31/10/2019,Hcare Srv Rec Fdtn Trust-Contract Baseline,IMPROVING ACCESS TO PSYCHOLOGICAL THERAPIES,SOUTH WEST YORKSHIRE PARTNERSHIP NHS FOUNDATION TRUST,29526880,"10,132.00"
Department of Health,NHS Barnsley CCG,31/10/2019,Hcare Srv Rec Fdtn Trust-Contract Baseline,MENTAL HEALTH SERVICES - ADULTS,SOUTH WEST YORKSHIRE PARTNERSHIP NHS FOUNDATION TRUST,29526880,"26,223.00"
Department of Health,NHS Barnsley CCG,30/11/2019,Clinical&Medical-Commercial Sector,NCAS/OATS,SPAMEDICA LTD,29627031,"73,547.72"
Department of Health,NHS Barnsley CCG,30/11/2019,Clinical&Medical-Commercial Sector,NCAS/OATS,SPAMEDICA LTD,30010683,"77,304.97"
Department of Health,NHS Barnsley CCG,30/11/2019,Cont Care-Learning Disab(<65),CHC ADULT FULLY FUNDED,SUN HEALTHCARE LTD,29932004,"25,003.80"
Department of Health,NHS Barnsley CCG,30/11/2019,C&M-PMS Contract Value,PRC DELEGATED CO-COMMISSIONING,NHS BARNSLEY CCG GP PRACTICE,29748052,"78,988.30"
Department of Health,NHS Barnsley CCG,30/11/2019,C&M-PMS PCN DES Participation,PRC DELEGATED CO-COMMISSIONING,NHS BARNSLEY CCG GP PRACTICE,29748052,"1,483.61"
Department of Health,NHS Barnsley CCG,30/11/2019,C&M-PMS Prem Actual Rent,PRC DELEGATED CO-COMMISSIONING,NHS BARNSLEY CCG GP PRACTICE,29748052,319.38
Department of Health,NHS Barnsley CCG,30/11/2019,C&M-PMS Prem Healthcentre Rent,PRC DELEGATED CO-COMMISSIONING,NHS BARNSLEY CCG GP PRACTICE,29748052,"21,462.45"
Department of Health,NHS Barnsley CCG,30/11/2019,C&M-PMS QOF Aspiration,PRC DELEGATED CO-COMMISSIONING,NHS BARNSLEY CCG GP PRACTICE,29748052,"6,461.55"
Department of Health,NHS Barnsley CCG,30/11/2019,C&M-PMS Contract Value,PRC DELEGATED CO-COMMISSIONING,NHS BARNSLEY CCG GP PRACTICE,29750263,"45,566.92"
Department of Health,NHS Barnsley CCG,30/11/2019,C&M-PMS DES Minor Surgery,PRC DELEGATED CO-COMMISSIONING,NHS BARNSLEY CCG GP PRACTICE,29750263,"1,278.60"
Department of Health,NHS Barnsley CCG,30/11/2019,C&M-PMS Out of Hours Opt Outs,PRC DELEGATED CO-COMMISSIONING,NHS BARNSLEY CCG GP PRACTICE,29750263,35.84
Department of Health,NHS Barnsley CCG,30/11/2019,C&M-PMS PCN DES Participation,PRC DELEGATED CO-COMMISSIONING,NHS BARNSLEY CCG GP PRACTICE,29750263,878.38
Department of Health,NHS Barnsley CCG,30/11/2019,C&M-PMS PCO Other,PRC DELEGATED CO-COMMISSIONING,NHS BARNSLEY CCG GP PRACTICE,29750263,336.90
Department of Health,NHS Barnsley CCG,30/11/2019,C&M-PMS Prem Rates,PRC DELEGATED CO-COMMISSIONING,NHS BARNSLEY CCG GP PRACTICE,29750263,"1,625.00"
Department of Health,NHS Barnsley CCG,30/11/2019,C&M-PMS QOF Aspiration,PRC DELEGATED CO-COMMISSIONING,NHS BARNSLEY CCG GP PRACTICE,29750263,"4,097.25"
Department of Health,NHS Barnsley CCG,30/11/2019,Hcare Srv Rec Fdtn Trust-Non Contract,NCAS/OATS,YORK TEACHING HOSPITAL NHS FOUNDATION TRUST,29624673,"36,097.91"
Department of Health,NHS Barnsley CCG,30/11/2019,Hcare Srv Rec NHS Trust-Contract Baseline,AMBULANCE SERVICES,YORKSHIRE AMBULANCE SERVICE NHS TRUST,29669049,"728,818.00"
Department of Health,NHS Barnsley CCG,30/11/2019,Hcare Srv Rec NHS Trust-Contract Baseline,NHS 111,YORKSHIRE AMBULANCE SERVICE NHS TRUST,29669081,"65,235.31"
Department of Health,NHS Barnsley CCG,30/11/2019,Hcare Srv Rec NHS Trust-Contract Baseline,PATIENT TRANSPORT,YORKSHIRE AMBULANCE SERVICE NHS TRUST,29669084,"139,747.03"
,,,,,,,"31,111,803.26"
